bitfinex-derivatives/quotes_ETHF0:USTF0_20241013
["timestamp","ask_amount","ask_price","bid_price","bid_amount"]
[1728821515947,0.81905,2463.7,2463.6,0.40595]
[1728821516642,0.4131,2463.7,2463.6,0.40595]
[1728821517643,0.81905,2463.7,2463.6,0.40595]
[1728821518037,0.4131,2463.7,2463.6,0.40595]
[1728821519645,0.81905,2463.7,2463.6,0.40595]
[1728821519844,0.4131,2463.7,2463.6,0.40595]
[1728821520747,0.40597,2463.6,2463.5,1.4675797]
[1728821520943,0.40598,2463.5,2463.4,1.19519]
[1728821521245,0.4116,2463.5,2463.4,1.19519]
[1728821521652,0.81758,2463.5,2463.4,1.19519]
[1728821521946,0.81906,2463.7,2463.6,0.40597]
[1728821522142,0.81905,2463.7,2463.6,0.40597]
[1728821522341,0.8103,2463.8,2463.5,0.3963]
[1728821522644,4.42405,2463.8,2463.7,0.40595]
[1728821523243,4.0181,2463.8,2463.7,0.40595]
[1728821523435,0.40593,2463.9,2463.8,0.40593]
[1728821524144,0.3999,2464.0,2463.9,0.40592]
[1728821524644,0.8058,2464.0,2463.9,0.40592]
[1728821524947,0.3999,2464.0,2463.9,0.40592]
[1728821526943,0.40592,2463.9,2463.8,0.40592]
[1728821530052,0.3999,2464.0,2463.8,0.40592]
[1728821530249,0.40592,2463.9,2463.8,0.40592]
[1728821530450,0.3999,2464.0,2463.6,1.0615997]
[1728821530451,1.99351025,2464.0,2463.6,1.0615997]
[1728821530649,0.40595,2463.7,2463.6,1.0615997]
[1728821530845,0.40595,2463.7,2463.6,1.4675697]
[1728821534252,0.40595,2463.7,2463.6,1.0615997]
[1728821534453,0.40595,2463.7,2463.6,1.4675697]
[1728821534657,0.40595,2463.7,2463.6,0.40597]
[1728821534852,0.40597,2463.6,2463.5,1.8638697]
[1728821535254,0.40597,2463.6,2463.5,5.9230697]
[1728821536059,0.40597,2463.6,2463.5,1.8638697]
[1728821538854,0.40597,2463.6,2463.5,0.80227]
[1728821543666,1.1928,2463.7,2463.4,1.8507997]
[1728821543867,0.40598,2463.5,2463.4,1.19519]
[1728821549377,0.40598,2463.6,2463.5,0.40597]
[1728821549876,3.61376,2463.7,2463.6,0.40597]
[1728821556575,0.40596,2463.7,2463.6,1.4675697]
[1728821557976,0.40596,2463.7,2463.6,1.8695697]
[1728821559584,1.99957025,2463.7,2463.6,3.03312816]
[1728821559783,1.99957025,2463.7,2463.6,1.8695697]
[1728821560086,1.99957025,2463.7,2463.6,3.03314971]
[1728821560281,1.99957025,2463.7,2463.6,2.62717971]
[1728821560488,0.40596,2463.7,2463.6,2.2256389]
[1728821560694,0.40597,2463.6,2463.5,1.0615997]
[1728821560986,2.39645655,2463.6,2463.5,1.16413086]
[1728821561186,2.39645655,2463.6,2463.5,2.2289752]
[1728821561487,2.39645655,2463.6,2463.5,2.22897852]
[1728821564089,2.39645655,2463.6,2463.5,2.63495852]
[1728821564388,2.39645655,2463.6,2463.5,3.16251041]
[1728821564688,2.39645655,2463.6,2463.5,1.57011086]
[1728821564991,2.39645655,2463.6,2463.5,1.47080284]
[1728821565592,2.39645655,2463.6,2463.5,2.63507431]
[1728821565785,2.00355655,2463.6,2463.5,2.63507431]
[1728821565983,2.00355655,2463.6,2463.5,1.57025147]
[1728821566185,1.59758655,2463.6,2463.5,1.57025147]
[1728821566393,5.73857367,2463.7,2463.5,3.07434578]
[1728821566394,5.21134655,2463.7,2463.5,3.07434578]
[1728821566588,3.61376,2463.7,2463.6,1.88964233]
[1728821566790,5.2111218,2463.7,2463.6,3.0537925]
[1728821566991,5.2111218,2463.7,2463.6,1.88964233]
[1728821567196,5.2111218,2463.7,2463.6,3.05381105]
[1728821567690,5.2111218,2463.7,2463.6,1.88964233]
[1728821567895,4.8051618,2463.7,2463.6,1.88964233]
[1728821568096,4.8051618,2463.7,2463.6,2.30656923]
[1728821568295,4.8051618,2463.7,2463.6,3.70826482]
[1728821568696,1.5973618,2463.7,2463.6,3.70826482]
[1728821568894,1.5973618,2463.7,2463.6,3.89897053]
[1728821569286,1.5973618,2463.7,2463.6,3.70826482]
[1728821569805,1.5973618,2463.8,2463.7,0.40595]
[1728821570096,1.59728067,2463.8,2463.7,3.16248103]
[1728821570304,2.12481367,2464.0,2463.8,0.40593]
[1728821570305,1.59728067,2463.9,2463.8,0.40593]
[1728821570595,1.59728067,2463.9,2463.8,3.8939656]
[1728821570802,2.00319067,2464.0,2463.8,6.45682146]
[1728821571094,2.00319067,2464.0,2463.9,1.57005148]
[1728821571693,2.00319067,2464.0,2463.9,3.16702746]
[1728821572091,5.21099067,2464.0,2463.9,3.16702746]
[1728821572789,5.21099067,2464.0,2463.9,2.63462509]
[1728821573801,5.21099067,2464.0,2463.9,3.16663578]
[1728821574093,3.61371,2464.0,2463.9,2.63401059]
[1728821574294,5.21099067,2464.0,2463.9,2.63401059]
[1728821574500,3.61371,2464.0,2463.9,2.63400957]
[1728821574702,4.80508067,2464.0,2463.9,2.63400957]
[1728821575395,3.2078,2464.0,2463.9,2.63400957]
[1728821576291,5.21098067,2464.0,2463.9,1.47026977]
[1728821577298,3.6137,2464.0,2463.9,1.47026977]
[1728821579998,0.4059,2464.0,2463.9,1.47026977]
[1728821585311,0.7988,2464.0,2463.9,1.47026977]
[1728821587606,0.7988,2464.0,2463.9,0.40592]
[1728821587807,0.7988,2464.0,2463.9,1.47026977]
[1728821588106,0.7988,2464.0,2463.9,0.40592]
[1728821588616,0.7988,2464.0,2463.9,1.47026977]
[1728821589711,0.7988,2464.0,2463.9,0.40592]
[1728821590408,6.24277067,2464.2,2463.9,1.06434977]
[1728821590610,0.40589,2464.1,2464.0,0.40589]
[1728821590804,0.40589,2464.1,2464.0,0.80519]
[1728821591003,0.40589,2464.1,2464.0,0.8052]
[1728821591306,0.40589,2464.1,2464.0,0.3993]
[1728821591610,0.40589,2464.1,2464.0,0.8052]
[1728821593109,5.62428067,2464.2,2464.0,0.3993]
[1728821593315,6.03016067,2464.2,2464.1,0.40588]
[1728821594015,0.40588,2464.1,2464.0,0.80519]
[1728821602313,2.82235067,2464.2,2464.1,0.40588]
[1728821604026,1.22507,2464.2,2464.1,0.40588]
[1728821605027,0.8192,2464.2,2464.1,0.40588]
[1728821605223,0.3962,2464.2,2464.1,0.40588]
[1728821605423,0.3962,2464.2,2464.1,0.82028]
[1728821605631,0.80207,2464.2,2464.1,0.82028]
[1728821606524,0.80207,2464.2,2464.1,0.4144]
[1728821606727,0.80207,2464.2,2464.1,0.82028]
[1728821609230,0.80207,2464.2,2464.1,3.04649263]
[1728821610829,0.80207,2464.2,2464.1,3.04655654]
[1728821611229,0.80207,2464.2,2464.1,3.04518267]
[1728821612135,0.80207,2464.2,2464.1,3.70608171]
[1728821612331,0.80207,2464.2,2464.1,3.70608165]
[1728821613124,1.86556775,2464.2,2464.1,3.89671972]
[1728821613826,1.86556775,2464.2,2464.1,3.48231972]
[1728821614025,1.86556775,2464.2,2464.1,1.56780677]
[1728821614225,1.86556775,2464.2,2464.1,3.29168568]
[1728821614427,1.86556775,2464.2,2464.1,3.48233311]
[1728821614823,1.86556775,2464.2,2464.1,3.48302]
[1728821615530,1.86556775,2464.2,2464.1,3.48317127]
[1728821618129,1.86556775,2464.2,2464.1,3.29252053]
[1728821618329,1.86556775,2464.2,2464.1,3.48322752]
[1728821619233,1.86556775,2464.2,2464.1,3.29252053]
[1728821619434,1.86556775,2464.2,2464.1,3.48323439]
[1728821620030,1.45969775,2464.2,2464.1,3.9908481]
[1728821620533,1.06349775,2464.2,2464.1,2.82795122]
[1728821620739,1.06349775,2464.3,2464.2,0.40587]
[1728821620937,1.06349775,2464.3,2464.2,4.10417459]
[1728821621132,1.06349775,2464.3,2464.2,4.80225358]
[1728821621833,1.06349775,2464.3,2464.2,4.80224504]
[1728821622336,1.06349775,2464.3,2464.2,4.16792212]
[1728821622639,0.3902,2464.4,2464.3,0.40585]
[1728821622936,1.45441546,2464.4,2464.3,2.63240986]
[1728821623130,0.3902,2464.4,2464.3,3.04620986]
[1728821623331,1.45438188,2464.4,2464.3,3.04633107]
[1728821623531,0.3902,2464.4,2464.3,1.8833539]
[1728821623737,1.4543775,2464.4,2464.3,3.04633163]
[1728821624138,1.98748067,2464.4,2464.3,1.8833539]
[1728821624338,1.45434655,2464.4,2464.3,3.04626339]
[1728821624540,1.45434655,2464.4,2464.3,1.8833539]
[1728821624541,1.45435414,2464.4,2464.3,1.8833539]
[1728821624740,1.86018414,2464.4,2464.3,1.8833539]
[1728821625039,1.86018414,2464.4,2464.3,3.04626015]
[1728821625247,1.86016144,2464.4,2464.3,1.8833539]
[1728821625837,0.79603,2464.4,2464.3,1.8833539]
[1728821626027,1.86016221,2464.4,2464.3,1.8833539]
[1728821627028,0.3902,2464.4,2464.3,1.8833539]
[1728821627434,1.45429496,2464.4,2464.3,1.8833539]
[1728821627835,0.3902,2464.4,2464.3,1.8833539]
[1728821628234,1.4542954,2464.4,2464.3,1.8833539]
[1728821630950,1.0640954,2464.4,2464.3,3.04665254]
[1728821631240,1.0640954,2464.4,2464.3,3.04687685]
[1728821633945,1.0640954,2464.4,2464.3,3.04674408]
[1728821634241,1.0640954,2464.5,2464.4,0.40583]
[1728821634456,1.0640954,2464.5,2464.4,2.63226462]
[1728821638147,1.0640954,2464.6,2464.4,3.58284614]
[1728821638358,5.21086067,2464.7,2464.6,0.4058]
[1728821638645,5.21086067,2464.7,2464.6,1.46919122]
[1728821639247,5.21086067,2464.7,2464.6,0.4058]
[1728821639456,5.21086067,2464.7,2464.6,1.46919122]
[1728821640854,0.4058,2464.6,2464.5,2.26240122]
[1728821641047,1.06402079,2464.6,2464.5,3.95695694]
[1728821641247,1.06402079,2464.6,2464.5,2.36160793]
[1728821641443,1.06402079,2464.6,2464.5,3.42490987]
[1728821641859,1.46982079,2464.6,2464.5,3.42490987]
[1728821642152,1.06402079,2464.6,2464.5,3.4248628]
[1728821642348,1.46982079,2464.6,2464.5,2.36160793]
[1728821642548,1.06402079,2464.6,2464.5,2.36160793]
[1728821642860,1.06402079,2464.6,2464.5,3.42491735]
[1728821645456,1.46982079,2464.6,2464.5,3.42491735]
[1728821645854,1.06402079,2464.6,2464.5,3.42491735]
[1728821646252,1.06402079,2464.6,2464.5,2.26231942]
[1728821646459,1.06402079,2464.6,2464.5,3.42466564]
[1728821650569,1.06402079,2464.6,2464.5,2.36135622]
[1728821651369,1.06402079,2464.6,2464.5,2.36130423]
[1728821651867,1.06402079,2464.6,2464.5,3.42442207]
[1728821652769,1.06402079,2464.6,2464.5,2.36130423]
[1728821653271,4.67761079,2464.7,2464.6,0.4058]
[1728821653471,4.67761079,2464.7,2464.6,1.46859479]
[1728821653669,4.67761079,2464.7,2464.6,1.89149479]
[1728821653867,4.67738248,2464.7,2464.6,1.89149479]
[1728821655059,1.46958248,2464.7,2464.6,1.89149479]
[1728821655261,4.67738248,2464.7,2464.6,1.89149479]
[1728821656978,1.46958248,2464.7,2464.6,1.89149479]
[1728821657273,4.67738248,2464.7,2464.6,1.89149479]
[1728821657777,4.27159248,2464.7,2464.6,1.89149479]
[1728821657968,4.67737248,2464.7,2464.6,1.89149479]
[1728821659177,4.27159248,2464.7,2464.6,1.89149479]
[1728821659674,4.67737248,2464.7,2464.6,1.89149479]
[1728821662075,5.21086067,2464.7,2464.6,0.8287]
[1728821662272,5.21086067,2464.7,2464.6,1.89149479]
[1728821663778,5.21086067,2464.7,2464.6,1.48569479]
[1728821663976,5.21086067,2464.7,2464.6,1.89149479]
[1728821665373,5.21086067,2464.7,2464.6,1.06279479]
[1728821665573,3.2078,2464.7,2464.5,1.06279479]
[1728821665778,2.00210738,2464.6,2464.5,1.06279479]
[1728821666074,2.00210738,2464.6,2464.5,2.63144674]
[1728821666579,0.4058,2464.6,2464.5,1.56865195]
[1728821666780,1.47008192,2464.6,2464.5,3.16400096]
[1728821667474,2.00210738,2464.6,2464.5,1.56865195]
[1728821668275,2.00210738,2464.6,2464.5,3.16400096]
[1728821668474,1.47016227,2464.6,2464.5,3.16400096]
[1728821668675,1.47016227,2464.6,2464.5,2.75818096]
[1728821668872,1.47016227,2464.6,2464.5,3.48160018]
[1728821669073,1.47016227,2464.6,2464.5,3.07578018]
[1728821669270,0.4058,2464.6,2464.5,2.88506051]
[1728821669473,0.4058,2464.6,2464.5,3.07578366]
[1728821669879,0.4058,2464.6,2464.5,2.88506268]
[1728821670077,0.4058,2464.6,2464.5,3.0757852]
[1728821670276,2.00210738,2464.6,2464.5,3.0757852]
[1728821670478,0.4058,2464.6,2464.5,3.4816052]
[1728821671186,0.4058,2464.6,2464.5,3.0757852]
[1728821671987,2.00210738,2464.6,2464.5,2.88506268]
[1728821672181,2.00210738,2464.6,2464.5,2.94890592]
[1728821672484,2.00210738,2464.6,2464.5,3.13964969]
[1728821672984,2.00210738,2464.6,2464.5,3.64717607]
[1728821673881,2.00210738,2464.6,2464.5,4.05299607]
[1728821674081,2.00210738,2464.6,2464.5,3.5833138]
[1728821674284,2.00210738,2464.6,2464.5,3.4564323]
[1728821674887,2.00210738,2464.6,2464.5,3.45697525]
[1728821675286,2.00210738,2464.6,2464.5,4.2821539]
[1728821676281,2.00210738,2464.6,2464.5,3.09262489]
[1728821678183,2.00210738,2464.6,2464.5,2.68680489]
[1728821678391,2.00210738,2464.6,2464.5,3.09262489]
[1728821678987,2.00210738,2464.6,2464.5,2.68680489]
[1728821679694,2.00210738,2464.6,2464.5,2.68712398]
[1728821680391,2.00210738,2464.6,2464.5,4.81031937]
[1728821680693,2.00210738,2464.6,2464.5,3.09293996]
[1728821680899,2.00210738,2464.6,2464.5,3.09299782]
[1728821681192,2.00210738,2464.6,2464.5,2.68717782]
[1728821681392,2.00210738,2464.6,2464.5,5.21619723]
[1728821683790,0.4058,2464.6,2464.5,5.21619723]
[1728821684200,0.4058,2464.6,2464.5,4.89848988]
[1728821684397,0.4058,2464.6,2464.5,5.21651614]
[1728821685090,0.4058,2464.6,2464.5,4.81069614]
[1728821685292,0.4058,2464.6,2464.5,4.1124448]
[1728821688109,0.4058,2464.6,2464.5,4.11251497]
[1728821688591,0.4058,2464.6,2464.5,1.98931556]
[1728821688792,0.4058,2464.6,2464.5,4.11251497]
[1728821689201,2.53061367,2464.6,2464.5,1.99001072]
[1728821689403,2.53061367,2464.6,2464.5,3.58804357]
[1728821690297,2.53061367,2464.6,2464.5,3.58793797]
[1728821691705,2.53061367,2464.6,2464.5,2.76259748]
[1728821691998,2.53061367,2464.6,2464.5,3.0804332]
[1728821692205,2.53061367,2464.6,2464.5,2.95355456]
[1728821692403,2.53061367,2464.6,2464.5,3.08044242]
[1728821693796,2.53061367,2464.6,2464.5,3.08026701]
[1728821695702,2.53061367,2464.6,2464.5,3.08022754]
[1728821698600,2.53061367,2464.6,2464.5,3.08011348]
[1728821699201,2.53061367,2464.6,2464.5,2.88919587]
[1728821699409,2.53061367,2464.6,2464.5,3.08008292]
[1728821700904,0.4058,2464.6,2464.5,3.58762753]
[1728821701599,0.4058,2464.6,2464.5,2.42324677]
[1728821701809,2.53061367,2464.6,2464.5,3.26972739]
[1728821702001,2.53061367,2464.6,2464.5,3.07995635]
[1728821702207,2.53061367,2464.6,2464.5,3.07995765]
[1728821702508,0.4058,2464.6,2464.5,3.58750413]
[1728821703007,5.33261367,2464.7,2464.5,3.58750413]
[1728821703196,5.73840367,2464.7,2464.6,2.70987875]
[1728821703399,5.73840367,2464.7,2464.6,4.50197249]
[1728821703604,5.73840367,2464.7,2464.6,4.69282624]
[1728821703806,5.73840367,2464.7,2464.6,4.28702624]
[1728821704107,5.73840367,2464.7,2464.6,4.69282624]
[1728821704304,5.73840367,2464.7,2464.6,4.28702624]
[1728821704708,5.73840367,2464.7,2464.6,4.69282624]
[1728821705010,5.73840367,2464.7,2464.6,5.20034442]
[1728821705515,3.2078,2464.7,2464.6,5.00949067]
[1728821705817,5.33261367,2464.7,2464.6,5.20032191]
[1728821706109,3.2078,2464.7,2464.6,5.20032191]
[1728821706610,3.2078,2464.7,2464.6,5.20001939]
[1728821707314,3.61358,2464.7,2464.6,4.79421939]
[1728821707606,5.73839367,2464.7,2464.6,4.79422372]
[1728821707799,6.12689367,2464.7,2464.6,4.28670514]
[1728821708005,4.00208,2464.7,2464.6,5.20002781]
[1728821708311,6.12689367,2464.7,2464.6,4.79422781]
[1728821709208,6.12689367,2464.7,2464.6,4.79422794]
[1728821709412,6.12689367,2464.7,2464.6,4.79423022]
[1728821709715,6.12689367,2464.7,2464.6,4.79422898]
[1728821711912,6.12689367,2464.7,2464.6,4.28670742]
[1728821712403,4.00208,2464.7,2464.6,5.20003146]
[1728821712604,4.00208,2464.7,2464.6,4.79423146]
[1728821713007,2.91909367,2464.7,2464.6,4.79423146]
[1728821713507,2.91909367,2464.7,2464.6,4.79430767]
[1728821715414,2.91909367,2464.7,2464.6,4.28678363]
[1728821715615,2.91909367,2464.7,2464.6,4.79430854]
[1728821716717,2.91909367,2464.7,2464.6,4.79430851]
[1728821717016,2.91909367,2464.7,2464.6,4.28678363]
[1728821717513,2.91909367,2464.7,2464.6,4.69258363]
[1728821717913,2.91909367,2464.7,2464.6,4.28678363]
[1728821718605,2.91909367,2464.7,2464.6,4.79430741]
[1728821718806,2.91909367,2464.7,2464.6,3.97220741]
[1728821719003,2.91909367,2464.7,2464.6,3.07968363]
[1728821719217,2.91909367,2464.7,2464.6,1.59792725]
[1728821719909,2.91909367,2464.7,2464.6,1.16457167]
[1728821720713,6.12689367,2464.7,2464.6,1.16457167]
[1728821721115,0.4058,2464.6,2464.5,2.77182725]
[1728821721314,0.4058,2464.6,2464.5,3.59720852]
[1728821721714,0.4058,2464.6,2464.5,2.42330852]
[1728821722309,0.4058,2464.6,2464.5,1.9157741]
[1728821722515,0.4058,2464.6,2464.5,2.42333367]
[1728821722716,0.4058,2464.6,2464.5,1.9157741]
[1728821722915,0.4058,2464.6,2464.5,2.42332708]
[1728821724324,0.4058,2464.6,2464.5,2.42335153]
[1728821724509,0.4058,2464.6,2464.5,2.55023783]
[1728821724715,0.4058,2464.6,2464.5,2.55023637]
[1728821725022,0.4058,2464.6,2464.5,2.42334668]
[1728821725321,0.4058,2464.6,2464.5,1.91578935]
[1728821725518,0.4058,2464.6,2464.5,2.42333739]
[1728821725921,0.4058,2464.6,2464.5,1.91578935]
[1728821726112,0.4058,2464.6,2464.5,2.42333767]
[1728821726313,0.4058,2464.6,2464.5,1.91578935]
[1728821726723,2.53061367,2464.6,2464.5,3.08033687]
[1728821727021,2.53061367,2464.6,2464.5,3.58788461]
[1728821727923,2.53061367,2464.6,2464.5,3.99370461]
[1728821728114,2.53061367,2464.6,2464.5,3.58788461]
[1728821728511,2.53061367,2464.6,2464.5,3.99370461]
[1728821729019,2.53061367,2464.6,2464.5,2.80327736]
[1728821729222,2.53061367,2464.6,2464.5,3.21777736]
[1728821730123,2.12481367,2464.6,2464.5,3.21777736]
[1728821731232,2.12481367,2464.6,2464.5,2.05322984]
[1728821731527,2.12481367,2464.6,2464.5,2.05322518]
[1728821731724,1.59753375,2464.6,2464.5,3.21770331]
[1728821735321,5.21883375,2464.7,2464.6,0.4058]
[1728821735527,5.21883375,2464.7,2464.6,1.69715833]
[1728821735831,5.62461375,2464.7,2464.6,1.2913062]
[1728821736229,6.15189367,2464.7,2464.6,1.2913062]
[1728821736432,6.15189367,2464.7,2464.6,2.95294511]
[1728821737223,6.15189367,2464.7,2464.6,2.76201323]
[1728821737427,6.15189367,2464.7,2464.6,3.58735655]
[1728821737626,6.15189367,2464.7,2464.6,3.07981469]
[1728821738536,10.20949367,2464.7,2464.6,2.22953542]
[1728821738831,12.46899234,2464.7,2464.6,1.06510942]
[1728821739039,0.4058,2464.6,2464.5,0.50752081]
[1728821739336,0.4058,2464.6,2464.5,1.57263023]
[1728821739928,4.79607294,2464.6,2464.5,0.50752081]
[1728821740342,8.85372927,2464.6,2464.5,0.50752081]
[1728821740729,14.85372927,2464.6,2464.5,0.50752081]
[1728821740935,12.19147867,2464.6,2464.5,0.50752081]
[1728821744536,14.84898132,2464.6,2464.5,0.50752081]
[1728821744946,12.19147867,2464.6,2464.5,0.50752081]
[1728821745442,14.8489596,2464.6,2464.5,0.50752081]
[1728821746030,18.0567596,2464.6,2464.5,0.50752081]
[1728821746737,15.39927867,2464.6,2464.5,0.50752081]
[1728821747338,14.99347867,2464.6,2464.0,0.4043]
[1728821747534,0.40588,2464.1,2464.0,1.87528942]
[1728821748341,4.27037475,2464.2,2464.0,1.46940942]
[1728821748538,4.27017852,2464.2,2464.1,0.40588]
[1728821748942,4.67604852,2464.2,2464.1,0.40588]
[1728821749237,3.61367,2464.2,2464.1,0.40588]
[1728821751838,0.40587,2464.2,2464.1,0.40588]
[1728821752032,3.61367,2464.2,2464.1,0.40588]
[1728821753143,3.2078,2464.2,2464.0,1.46940942]
[1728821753341,0.40588,2464.1,2464.0,1.46940942]
[1728821753542,0.40588,2464.1,2464.0,1.87530942]
[1728821754642,0.40588,2464.1,2464.0,1.46940942]
[1728821754838,0.40588,2464.1,2464.0,0.4043]
[1728821755248,0.79458,2464.1,2464.0,0.4043]
[1728821759143,1.85695852,2464.1,2464.0,0.4043]
[1728821760348,0.40592,2463.9,2463.8,1.06510942]
[1728821760652,3.2078,2463.9,2463.6,1.86157942]
[1728821760847,0.40595,2463.7,2463.6,1.45560942]
[1728821761651,0.40595,2463.7,2463.6,0.3905]
[1728821761852,0.40597,2463.6,2463.5,0.4124]
[1728821762041,0.40597,2463.6,2463.5,0.8029]
[1728821762245,0.40597,2463.6,2463.5,0.3905]
[1728821764454,0.40597,2463.6,2463.5,0.805]
[1728821767059,3.61377,2463.6,2463.5,0.805]
[1728821768749,3.61377,2463.6,2463.5,0.3905]
[1728821774963,0.406,2463.4,2463.3,0.3889]
[1728821775157,0.406,2463.4,2463.3,0.7764]
[1728821776356,0.406,2463.4,2463.3,1.18242]
[1728821776962,0.406,2463.4,2463.3,0.7764]
[1728821777367,0.406,2463.4,2463.3,1.18242]
[1728821778563,0.406,2463.4,2463.3,0.7764]
[1728821779668,0.406,2463.4,2463.3,1.18242]
[1728821780565,0.406,2463.4,2463.3,0.7764]
[1728821781770,0.406,2463.4,2463.3,1.18242]
[1728821785577,1.20909,2463.5,2463.4,0.406]
[1728821786065,1.20909,2463.5,2463.3,0.7764]
[1728821786270,1.20909,2463.5,2463.3,1.1824]
[1728821786473,0.8031,2463.5,2463.3,1.1824]
[1728821786673,1.2091,2463.5,2463.3,1.1824]
[1728821786877,0.8031,2463.5,2463.3,1.1824]
[1728821787177,0.406,2463.4,2463.3,1.1824]
[1728821789474,1.20909,2463.5,2463.3,1.1824]
[1728821790574,0.406,2463.4,2463.3,1.1824]
[1728821793282,0.406,2463.4,2463.3,1.18241]
[1728821798879,0.8031,2463.5,2463.4,0.406]
[1728821799174,0.3938,2463.5,2463.4,0.406]
[1728821799884,4.27017852,2463.6,2463.4,0.406]
[1728821800081,4.67614852,2463.6,2463.5,0.4027]
[1728821802077,1.46834852,2463.6,2463.5,0.4027]
[1728821802585,0.40597,2463.6,2463.5,0.4027]
[1728821802974,1.99983212,2463.6,2463.5,0.4027]
[1728821804481,0.40598,2463.5,2463.4,1.06510942]
[1728821804682,0.40598,2463.5,2463.3,1.59758723]
[1728821804683,0.406,2463.4,2463.3,1.06510942]
[1728821804890,6.00324997,2463.4,2463.3,1.06510942]
[1728821805184,6.00302574,2463.4,2463.3,1.06510942]
[1728821805481,4.4097,2463.4,2463.3,1.06510942]
[1728821806377,1.2019,2463.4,2463.3,1.06510942]
[1728821806577,4.4097,2463.4,2463.3,1.06510942]
[1728821807282,4.4097,2463.4,2463.3,2.22990448]
[1728821808988,4.4097,2463.4,2463.3,2.22991511]
[1728821813694,4.4097,2463.4,2463.3,2.23033962]
[1728821814284,4.4097,2463.4,2463.3,1.16480569]
[1728821814686,4.4097,2463.4,2463.3,2.2303152]
[1728821815695,6.5348495,2463.4,2463.3,2.2303152]
[1728821816088,4.4097,2463.4,2463.3,2.2303152]
[1728821816590,4.4097,2463.4,2463.3,1.06550951]
[1728821816591,6.5348495,2463.4,2463.3,1.06550951]
[1728821816997,4.4097,2463.4,2463.3,2.23033682]
[1728821817189,4.4097,2463.4,2463.3,1.06550951]
[1728821817790,4.4097,2463.4,2463.3,2.23031052]
[1728821818301,4.4097,2463.4,2463.3,2.23029453]
[1728821819891,6.5348495,2463.4,2463.3,1.06550951]
[1728821820707,4.4097,2463.4,2463.3,1.06550951]
[1728821821001,6.5348495,2463.4,2463.3,1.06550951]
[1728821821203,4.4097,2463.4,2463.3,1.06550951]
[1728821821893,4.4097,2463.4,2463.3,2.6362421]
[1728821822290,6.00357779,2463.4,2463.3,2.6362421]
[1728821822498,4.4097,2463.4,2463.3,2.6362421]
[1728821822999,1.59390227,2463.4,2463.3,2.63605165]
[1728821823298,1.59390227,2463.4,2463.3,3.99399429]
[1728821823493,1.06262874,2463.4,2463.3,3.58797429]
[1728821823699,1.06262874,2463.4,2463.3,2.39640706]
[1728821825799,1.06262874,2463.4,2463.3,6.45560706]
[1728821826200,1.06262874,2463.4,2463.3,8.57870573]
[1728821826395,1.06262874,2463.4,2463.3,5.82076567]
[1728821826603,1.46862874,2463.4,2463.3,8.38772518]
[1728821826800,1.46862874,2463.4,2463.3,2.39625103]
[1728821826999,0.7952,2463.4,2463.3,4.50193783]
[1728821827411,2.38910227,2463.4,2463.3,4.50193783]
[1728821827610,1.85782689,2463.4,2463.3,4.50193783]
[1728821828404,1.45182689,2463.4,2463.3,4.50193783]
[1728821828605,1.45182689,2463.4,2463.3,2.90401808]
[1728821828906,1.45182689,2463.4,2463.3,4.50190251]
[1728821829306,1.06262689,2463.4,2463.3,5.02721749]
[1728821829507,1.06262689,2463.4,2463.3,6.96321808]
[1728821829712,1.06262689,2463.4,2463.3,8.57866235]
[1728821830012,1.06262689,2463.4,2463.3,8.0708953]
[1728821830212,1.06262689,2463.4,2463.3,4.51943927]
[1728821830407,1.06262689,2463.4,2463.3,6.45543986]
[1728821830714,1.06262689,2463.4,2463.3,6.4554203]
[1728821831313,1.06262689,2463.4,2463.3,8.57861971]
[1728821832116,1.06262689,2463.4,2463.3,4.51941971]
[1728821832511,1.06262689,2463.4,2463.3,2.3962203]
[1728821832711,1.06262689,2463.4,2463.3,4.51941971]
[1728821833709,1.06262689,2463.4,2463.3,4.32849743]
[1728821833920,1.06262689,2463.4,2463.3,4.51943713]
[1728821835214,1.06262689,2463.5,2463.4,0.406]
[1728821835414,1.06262689,2463.5,2463.4,2.39611571]
[1728821835620,1.06262689,2463.6,2463.5,0.40598]
[1728821835817,1.06262689,2463.6,2463.5,3.17209571]
[1728821836016,1.06262689,2463.6,2463.5,4.76963953]
[1728821837016,1.06262689,2463.6,2463.5,8.82883953]
[1728821837916,1.06262689,2463.6,2463.5,8.70180901]
[1728821838122,1.06262689,2463.6,2463.5,8.82873818]
[1728821839017,1.46859689,2463.6,2463.5,3.85584147]
[1728821839418,1.46859689,2463.6,2463.5,4.26182147]
[1728821840018,1.46859689,2463.6,2463.5,3.85584147]
[1728821840216,1.46859689,2463.6,2463.5,4.26136546]
[1728821841320,1.46859689,2463.6,2463.5,4.26134566]
[1728821841514,1.06262689,2463.6,2463.5,3.94355809]
[1728821841723,1.06262689,2463.6,2463.5,4.26134181]
[1728821842127,1.46859689,2463.6,2463.5,3.85535985]
[1728821842322,1.46859689,2463.6,2463.5,4.26133985]
[1728821842518,1.46859689,2463.6,2463.5,3.85535985]
[1728821842718,1.46859689,2463.6,2463.5,4.26133985]
[1728821843227,1.46859689,2463.6,2463.5,3.94338696]
[1728821844021,1.06262689,2463.6,2463.5,3.94338696]
[1728821844530,1.88348689,2463.7,2463.5,4.26114049]
[1728821844831,1.88348689,2463.7,2463.6,1.06446987]
[1728821846825,1.06262689,2463.7,2463.6,2.63410095]
[1728821847032,1.46857689,2463.7,2463.6,1.47043987]
[1728821849529,1.46857689,2463.7,2463.6,1.06446987]
[1728821850926,1.46857689,2463.7,2463.6,1.47043987]
[1728821853526,1.46857689,2463.7,2463.6,1.06446987]
[1728821853726,1.46857689,2463.7,2463.6,1.47043987]
[1728821854522,1.46857689,2463.7,2463.6,1.06446987]
[1728821855233,1.46857689,2463.7,2463.6,2.22801055]
[1728821855432,1.46857689,2463.7,2463.6,2.63373616]
[1728821855731,1.46857689,2463.7,2463.6,2.22776616]
[1728821856038,1.46857689,2463.7,2463.6,1.06422548]
[1728821856237,1.46857689,2463.7,2463.6,2.22778541]
[1728821857533,1.46857689,2463.7,2463.6,1.56952993]
[1728821857736,1.46857689,2463.7,2463.6,2.63380283]
[1728821857928,1.46857689,2463.7,2463.6,2.22783283]
[1728821858325,1.46857689,2463.7,2463.6,2.63380283]
[1728821858722,1.46857689,2463.7,2463.6,1.4702429]
[1728821858928,1.46857689,2463.7,2463.6,2.6338172]
[1728821859140,1.06262689,2463.7,2463.6,2.6338172]
[1728821859337,1.46856689,2463.8,2463.6,3.16708812]
[1728821859533,1.46856689,2463.8,2463.7,1.06427868]
[1728821859738,1.46856689,2463.8,2463.7,1.46617868]
[1728821860242,1.99984227,2463.8,2463.7,1.46617868]
[1728821861542,0.40594,2463.8,2463.7,1.87212868]